bitfinex/quotes_SOLUSD_20220118
["timestamp","ask_amount","ask_price","bid_price","bid_amount"]
[1642517904543,5.35392378,135.84,135.7,2.945]
[1642517904735,2.946,135.83,135.71,0.25]
[1642517904937,2.946,135.83,135.71,6.25]
[1642517905140,0.25,135.82,135.72,6.0]
[1642517905332,0.25,135.82,135.74,11.0481]
[1642517905534,2.945,135.81,135.75,6.0]
[1642517905736,0.25,135.8,135.75,6.0]
[1642517906736,0.25,135.8,135.75,17.0473]
[1642517907136,0.25,135.81,135.75,17.0473]
[1642517907538,0.25,135.81,135.75,6.0]
[1642517907740,3.195,135.81,135.7,2.946]
[1642517907937,1.78905272,135.8,135.7,2.946]
[1642517908240,3.196,135.79,135.7,2.946]
[1642517908738,38.883071,135.78,135.71,37.03055159]
[1642517908937,2.946,135.77,135.71,37.03055159]
[1642517909139,0.25,135.77,135.71,37.03055159]
[1642517909339,0.25,135.79,135.71,37.03055159]
[1642517909539,0.25,135.79,135.72,0.25]
[1642517909739,2.946,135.82,135.72,0.25]
[1642517909939,46.32203578,135.81,135.72,6.25]
[1642517910440,46.32203578,135.81,135.73,11.0482]
[1642517910643,2.946,135.83,135.74,0.25]
[1642517910940,27.1688,135.86,135.75,2.945]
[1642517911139,27.1688,135.86,135.76,6.0]
[1642517911341,24.2238,135.86,135.76,13.353]
[1642517911540,42.34323414,135.85,135.77,39.12922183]
[1642517911837,45.28823414,135.85,135.77,50.42372183]
[1642517912640,0.61987106,135.84,135.77,50.42372183]
[1642517913040,0.61987106,135.84,135.77,50.17372183]
[1642517913243,0.36987106,135.84,135.77,50.17372183]
[1642517913439,3.31487106,135.84,135.77,11.0445]
[1642517913639,0.36987106,135.84,135.77,11.0445]
[1642517914440,0.36987106,135.84,135.77,51.70159653]
[1642517914638,3.56487106,135.84,135.77,11.0445]
[1642517915242,3.56487106,135.84,135.71,2.945]
[1642517915439,1.78905272,135.83,135.75,6.0]
[1642517915640,11.0496,135.81,135.73,37.41728456]
[1642517915840,44.13918325,135.79,135.73,37.41728456]
[1642517916241,0.25,135.78,135.73,37.41728456]
[1642517916442,0.25,135.78,135.7,8.946]
[1642517916646,0.25,135.78,135.7,6.0]
[1642517916842,0.25,135.78,135.69,39.777]
[1642517917045,0.25,135.78,135.69,36.831]
[1642517917444,0.25,135.78,135.7,50.89614082]
[1642517918446,0.25,135.78,135.7,11.0507]
[1642517918750,0.25,135.78,135.69,11.0522]
[1642517918947,2.947,135.77,135.66,2.946]
[1642517919352,0.25,135.76,135.66,2.946]
[1642517919552,2.947,135.75,135.65,41.85425268]
[1642517919747,0.25,135.74,135.65,41.85425268]
[1642517919950,47.51149998,135.72,135.65,41.85425268]
[1642517920147,0.25,135.71,135.65,41.85425268]
[1642517921048,47.51149998,135.72,135.65,41.85425268]
[1642517921448,47.51149998,135.72,135.65,52.90965268]
[1642517921647,0.25,135.71,135.65,52.90965268]
[1642517922851,0.25,135.75,135.65,52.90965268]
[1642517923053,5.03036849,135.78,135.69,11.0508]
[1642517923252,2.08336849,135.78,135.7,0.25]
[1642517923459,2.08336849,135.78,135.7,6.25]
[1642517923655,2.08336849,135.78,135.71,43.50079792]
[1642517923856,2.08336849,135.78,135.71,52.18579792]
[1642517924056,5.02936849,135.81,135.72,0.25]
[1642517924257,5.02936849,135.81,135.72,91.1489]
[1642517924458,2.08336849,135.81,135.72,91.1489]
[1642517924857,2.08336849,135.81,135.72,91.4089]
[1642517925357,43.23145235,135.81,135.72,17.2989]
[1642517925558,0.25,135.8,135.74,39.33597609]
[1642517925756,0.25,135.8,135.75,11.047]
[1642517925959,0.25,135.8,135.72,6.25]
[1642517926357,0.25,135.8,135.72,6.0]
[1642517926656,3.196,135.8,135.69,6.0]
[1642517926857,0.25,135.8,135.73,40.58845934]
[1642517927460,0.26,135.81,135.74,0.25]
[1642517927760,5.02936849,135.83,135.73,40.58845934]
[1642517927961,2.34336849,135.82,135.74,0.25]
[1642517928162,2.08336849,135.82,135.73,40.58845934]
[1642517928362,41.72995006,135.81,135.73,40.58845934]
[1642517928663,41.72995006,135.81,135.74,11.298]
[1642517929262,0.25,135.8,135.74,11.298]
[1642517929461,2.08336849,135.82,135.74,16.621]
[1642517929763,2.08336849,135.82,135.77,11.0436]
[1642517930060,2.08336849,135.82,135.77,16.4246]
[1642517930260,2.08336849,135.82,135.78,44.33015367]
[1642517930462,2.08336849,135.82,135.78,44.08015367]
[1642517930662,2.08336849,135.83,135.78,44.08015367]
[1642517931462,2.08336849,135.83,135.79,11.0439]
[1642517931961,0.36987106,135.84,135.79,11.0439]
[1642517932162,0.61987106,135.84,135.79,11.0439]
[1642517933765,0.61987106,135.84,135.72,24.2203]
[1642517933966,3.56487106,135.84,135.75,11.046]
[1642517934369,2.945,135.83,135.75,11.046]
[1642517934770,2.945,135.83,135.76,46.12799336]
[1642517934968,0.36987106,135.84,135.79,11.0419]
[1642517935168,4.15176937,135.88,135.8,36.25]
[1642517935369,4.15176937,135.88,135.81,2.944]
[1642517935571,2.08327403,135.83,135.82,6.0]
[1642517935770,4.15176937,135.86,135.82,13.259]
[1642517936070,4.15176937,135.86,135.84,11.0395]
[1642517936469,6.24224043,135.91,135.84,11.0395]
[1642517936670,114.644,135.92,135.85,0.25]
[1642517936871,111.7,135.92,135.85,13.392]
[1642517937071,50.88588344,135.93,135.85,13.392]
[1642517937471,4.16368344,135.93,135.86,45.63195793]
[1642517937673,4.16368344,135.93,135.87,11.0368]
[1642517937873,4.16368344,135.93,135.87,11.2868]
[1642517938473,39.97502431,135.92,135.87,11.2868]
[1642517938673,0.25,135.91,135.87,11.0368]
[1642517939073,6.0,135.95,135.87,11.0368]
[1642517939272,2.943,135.94,135.87,11.0368]
[1642517939876,43.83314168,135.93,135.87,11.0368]
[1642517940098,43.83314168,135.93,135.85,17.0384]
[1642517940299,43.83314168,135.93,135.85,6.0]
[1642517940300,2.943,135.92,135.85,6.0]
[1642517940498,2.943,135.92,135.84,6.0]
[1642517940699,0.25,135.91,135.78,2.943]
[1642517940901,38.31933321,135.89,135.81,47.58125826]
[1642517941305,0.25,135.88,135.81,47.58125826]
[1642517941507,11.0404,135.92,135.83,11.04]
[1642517941701,2.944,135.93,135.83,11.04]
[1642517941901,48.8314,135.94,135.84,8.943]
[1642517942102,8.943,135.95,135.84,8.943]
[1642517942304,47.22781037,135.95,135.85,45.66603029]
[1642517942503,47.48781037,135.95,135.86,8.943]
[1642517942701,47.22781037,135.95,135.87,0.25]
[1642517943504,47.22781037,135.95,135.88,42.61569833]
[1642517944107,6.26,135.95,135.88,42.61569833]
[1642517944304,2.943,135.99,135.88,42.61569833]
[1642517944503,11.0358,135.98,135.89,0.25]
[1642517944903,11.0358,135.98,135.89,6.25]
[1642517945503,2.943,135.99,135.89,6.25]
[1642517945706,13.9773,135.99,135.9,11.0346]
[1642517945908,13.9773,135.99,135.91,36.74588154]
[1642517946109,0.25,135.98,135.9,11.0346]
[1642517946311,2.942,135.97,135.84,2.942]
[1642517946509,2.942,135.97,135.83,2.943]
[1642517946711,11.0397,135.94,135.84,11.0397]
[1642517946912,11.0397,135.94,135.85,2.943]
[1642517947112,49.47696421,135.93,135.86,41.45249847]
[1642517947612,49.47696421,135.93,135.83,2.943]
[1642517947811,63.45956421,135.93,135.83,2.943]
[1642517948513,63.45956421,135.93,135.84,37.48799698]
[1642517948810,63.45956421,135.93,135.84,48.52779698]
[1642517949618,63.45956421,135.93,135.83,2.943]
[1642517949819,63.45956421,135.93,135.81,2.943]
[1642517950018,63.45956421,135.93,135.81,6.0]
[1642517950213,63.71956421,135.93,135.78,2.944]
[1642517950414,110.46476421,135.93,135.75,76.794]
[1642517950613,110.46476421,135.93,135.76,41.72513716]
[1642517950814,110.46476421,135.93,135.77,2.944]
[1642517951015,110.46476421,135.93,135.77,8.944]
[1642517951416,110.46476421,135.93,135.78,11.2942]
[1642517951614,110.46476421,135.93,135.8,44.70222086]
[1642517952420,110.46476421,135.93,135.79,2.944]
[1642517952715,117.93476421,135.93,135.76,4.64704274]
[1642517952915,156.49381693,135.93,135.76,2.944]
[1642517953116,164.5039788,135.93,135.76,2.944]
[1642517953315,4.14668137,135.92,135.77,39.31047391]
[1642517953518,11.0474,135.88,135.77,39.31047391]
[1642517953715,44.3729444,135.86,135.77,39.31047391]
[1642517953915,2.945,135.85,135.77,39.31047391]
[1642517954118,3.195,135.85,135.77,39.31047391]
[1642517954323,2.945,135.85,135.78,0.25]
[1642517954521,2.945,135.91,135.78,0.25]
[1642517954819,11.2926,135.9,135.78,11.2947]
[1642517955021,14.2366,135.9,135.78,17.2947]
[1642517955216,2.944,135.92,135.78,18.99774274]
[1642517955418,8.944,135.92,135.78,30.45062169]
[1642517955617,6.0,135.92,135.78,30.45062169]
[1642517955817,2.944,135.95,135.78,30.45062169]
[1642517955818,2.944,135.95,135.79,2.944]
[1642517956017,2.944,135.95,135.83,11.0372]
[1642517956217,2.944,135.95,135.84,3.193]
[1642517956418,42.13949371,135.94,135.85,44.41879221]
[1642517956617,2.943,135.96,135.85,44.41879221]
[1642517956822,47.792,135.97,135.86,9.193]
[1642517957021,0.26,135.96,135.86,9.193]
[1642517957218,48.052,135.97,135.86,8.943]
[1642517957421,2.943,135.96,135.86,6.0]
[1642517957623,41.36410262,135.95,135.86,6.0]
[1642517957820,2.943,135.94,135.85,44.41879221]
[1642517958021,0.25,135.94,135.86,0.25]
[1642517958421,0.25,135.94,135.86,11.2883]
[1642517958622,0.25,135.94,135.86,11.0383]
[1642517959224,0.25,135.94,135.85,44.41879221]
[1642517959526,43.17562442,135.92,135.83,11.0402]
[1642517959723,3.193,135.91,135.79,2.943]
[1642517959924,3.193,135.91,135.78,36.8042]
[1642517960225,3.193,135.91,135.79,2.944]
[1642517960424,3.193,135.91,135.8,35.34246485]
[1642517961224,14.2346,135.91,135.8,35.34246485]
[1642517961626,14.4946,135.91,135.8,35.34246485]
[1642517961826,14.2346,135.91,135.8,35.34246485]
[1642517962027,13.9846,135.91,135.81,6.25]
[1642517962226,13.9832,135.94,135.83,11.0403]
[1642517962729,13.9832,135.94,135.82,2.943]
[1642517962927,13.9832,135.94,135.81,6.0]
[1642517963128,42.4833856,135.93,135.81,6.0]
[1642517963330,11.0424,135.9,135.81,17.0424]
[1642517963530,39.15552232,135.89,135.81,17.0424]
[1642517963736,39.40552232,135.89,135.81,17.0424]
[1642517964131,39.40552232,135.89,135.81,6.0]
[1642517964430,39.40552232,135.89,135.8,35.34246485]
[1642517964635,39.40552232,135.89,135.81,0.25]
[1642517965230,0.51,135.89,135.81,0.25]
[1642517965431,49.7361,135.92,135.81,11.2923]
[1642517965631,2.944,135.95,135.82,4.64704274]
[1642517965834,6.24224043,135.96,135.82,4.64704274]
[1642517966031,6.24224043,135.96,135.83,7.95304274]
[1642517966258,6.24224043,135.96,135.84,43.4561205]
[1642517966458,6.24224043,135.96,135.85,11.0374]
[1642517966659,6.24224043,135.96,135.86,76.793]
[1642517966858,6.24224043,135.96,135.86,82.055]
[1642517967058,4.16296658,135.99,135.87,6.25]
[1642517967261,4.16296658,135.99,135.88,2.942]
[1642517967461,4.16296658,135.99,135.89,37.39623032]
[1642517967659,4.16296658,135.99,135.9,2.942]
[1642517967860,4.16296658,135.99,135.93,47.16036121]
[1642517968460,46.34890773,136.0,135.93,47.16036121]
[1642517968662,6.0,135.98,135.93,47.16036121]
[1642517968861,46.34890773,136.0,135.93,47.16036121]
[1642517969561,46.34890773,136.0,135.93,58.19306121]
[1642517970263,0.25,135.99,135.93,11.0327]
[1642517970462,0.25,135.99,135.91,11.0335]
[1642517970666,0.25,135.99,135.91,17.0335]
[1642517971363,0.25,135.99,135.92,47.48529473]
[1642517971562,11.2846,135.99,135.91,17.0335]
[1642517971761,2.942,135.98,135.89,11.0355]
[1642517971964,2.942,135.98,135.83,2.942]
[1642517972162,0.25,135.97,135.84,6.0]
[1642517972365,0.25,135.97,135.85,2.943]
[1642517972662,0.25,135.97,135.86,6.0]
[1642517972663,49.53731025,135.95,135.86,6.0]
[1642517972862,60.57581025,135.95,135.86,11.0383]
[1642517973063,0.25,135.94,135.86,11.0383]
[1642517973262,0.25,135.94,135.87,0.25]
[1642517973462,2.943,135.98,135.87,0.25]
[1642517973662,0.25,135.97,135.86,0.25]
[1642517973869,46.3715,135.99,135.87,11.0374]
[1642517974070,6.24224043,136.01,135.87,12.74044274]
[1642517974272,6.24224043,136.01,135.88,3.192]
[1642517974472,6.24224043,136.01,135.89,36.05742378]
[1642517974473,41.65613412,136.0,135.89,36.05742378]
[1642517974670,41.65613412,136.0,135.9,3.192]
[1642517975173,41.65613412,136.0,135.92,48.67315618]
[1642517975371,41.91613412,136.0,135.93,11.0319]
[1642517975570,41.65613412,136.0,135.93,11.0319]
[1642517975772,0.25,135.99,135.93,11.0319]
[1642517976272,0.25,136.01,135.93,11.0319]
[1642517976471,11.032,136.02,135.93,11.0319]
[1642517976673,39.712,136.03,135.94,0.25]
[1642517976872,73.39094223,136.03,135.94,0.25]
[1642517977072,36.62094223,136.03,135.97,37.77675179]
[1642517977273,6.24224043,136.05,135.97,43.86175179]
[1642517977873,2.94,136.08,135.97,43.86175179]
[1642517978072,6.0,136.07,135.98,0.25]
[1642517978272,46.3837347,136.06,136.0,37.03042284]
[1642517978472,46.3837347,136.06,136.0,43.37242284]
[1642517980076,46.3837347,136.06,136.0,6.342]
[1642517980274,46.3837347,136.06,135.97,6.085]
[1642517980474,46.6437347,136.06,135.98,11.0279]
[1642517980873,46.3837347,136.06,135.98,11.0279]
[1642517981074,46.3837347,136.06,135.99,38.12568835]
[1642517981474,8.94,136.07,136.0,0.25]
[1642517981675,2.94,136.09,136.0,0.25]
[1642517981874,2.94,136.09,136.0,6.25]
[1642517982276,2.94,136.09,136.0,6.0]
[1642517982474,42.47916898,136.08,136.0,6.0]
[1642517982679,2.94,136.07,136.0,6.0]
[1642517983575,2.94,136.07,136.0,17.0268]
[1642517983775,42.47916898,136.08,136.0,17.0268]
[1642517983975,42.73916898,136.08,136.0,17.0268]
[1642517984183,42.73916898,136.08,136.01,0.25]
[1642517984375,0.26,136.08,136.01,0.25]
[1642517984577,49.203488,136.1,136.03,11.024]
[1642517984774,2.043088,136.1,136.03,18.162]
[1642517984976,2.043088,136.1,136.04,6.0]
[1642517985379,42.41898901,136.09,136.04,6.0]
[1642517985978,2.043088,136.1,135.98,6.0]
[1642517986175,2.043088,136.1,136.04,11.0235]
[1642517986376,2.043088,136.1,136.04,18.9555]
[1642517986576,2.043088,136.1,136.05,8.939]
[1642517986978,2.043088,136.1,136.06,45.83477174]
[1642517987979,2.043088,136.1,136.06,56.85577174]
[1642517988980,2.043088,136.1,136.06,63.82777174]
[1642517989283,111.77962902,136.15,136.08,11.0194]
[1642517989681,111.77962902,136.15,136.09,0.25]
[1642517989882,0.07962902,136.15,136.09,48.24866419]
[1642517990484,0.07962902,136.15,136.1,11.0166]
[1642517990683,0.07962902,136.15,136.1,17.0166]
[1642517991083,0.07962902,136.15,136.11,0.25]
[1642517991682,0.07962902,136.15,136.12,11.0137]
[1642517992081,0.07962902,136.15,136.1,6.0]
[1642517992281,0.07962902,136.15,136.08,6.0]
[1642517992483,0.07962902,136.15,136.08,6.25]
[1642517992682,0.07962902,136.15,136.08,0.25]
[1642517992884,0.07962902,136.15,136.1,43.56003662]
[1642517993083,0.07962902,136.15,136.11,6.0]
[1642517993381,0.07962902,136.15,136.12,11.0158]
[1642517994385,0.07962902,136.15,136.13,37.88552168]
[1642517994583,0.07962902,136.15,136.14,11.0149]
[1642517994981,0.07962902,136.15,136.14,17.0149]
[1642517995182,0.07962902,136.15,136.14,17.2649]
[1642517995680,2.938,136.23,136.15,28.0]
[1642517995882,49.2187,136.24,136.15,34.291]
[1642517996082,49.2187,136.24,136.17,11.0099]
[1642517996283,2.936,136.27,136.18,0.25]
[1642517996485,2.936,136.27,136.18,6.25]
[1642517996685,2.936,136.27,136.16,43.32665908]
[1642517996982,35.05621417,136.26,136.17,6.25]
[1642517997383,6.0,136.25,136.2,11.0099]
[1642517998684,0.25,136.24,136.2,11.0099]
[1642517999485,0.25,136.24,136.18,11.0117]
[1642517999886,9.196,136.25,136.18,11.0117]
[1642518000087,6.26,136.25,136.18,11.0117]
[1642518000286,6.26,136.25,136.12,10.95962713]
[1642518000492,6.26,136.25,136.13,6.25]
[1642518000686,2.936,136.24,136.12,2.936]
[1642518000890,2.936,136.24,136.1,24.3593]
[1642518000891,2.936,136.24,136.1,2.936]
[1642518001086,2.936,136.24,136.08,5.6519579]
[1642518001387,94.36230708,136.23,136.08,2.7159579]
[1642518001586,2.937,136.22,136.02,4.64188188]
[1642518001787,22.9097,136.21,136.02,2.936]
[1642518001987,2.938,136.2,136.02,2.936]
[1642518002188,9.07955,136.19,135.98,14.04055496]
[1642518002388,99.24428241,136.18,135.99,43.58048215]
[1642518002591,36.77,136.15,136.0,13.9653]
[1642518002789,37.94036128,136.14,136.0,13.9653]
[1642518002993,55.9302,136.18,136.01,1.70588188]
[1642518003192,8.82955,136.19,136.02,2.939]
[1642518003592,11.0189,136.18,136.06,11.0184]
[1642518003792,2.938,136.17,136.06,11.0184]
[1642518004194,2.938,136.18,136.06,11.0184]
[1642518004492,2.938,136.2,136.07,2.938]
[1642518004693,3.188,136.17,136.07,2.938]
[1642518004892,0.25,136.17,136.08,48.16279847]
[1642518005092,40.59279895,136.15,136.07,2.938]
[1642518005292,0.25,136.14,136.07,2.938]
[1642518005495,4.97705272,136.14,136.07,2.938]
[1642518005691,11.0239,136.12,136.07,2.938]
[1642518005893,11.0239,136.12,136.04,11.0238]
[1642518006094,3.188,136.14,136.05,41.55229789]
[1642518006301,2.939,136.16,136.05,44.74129789]
[1642518006495,2.939,136.19,136.05,44.74129789]
[1642518006694,11.0191,136.18,136.06,11.0215]
[1642518006894,2.939,136.19,136.07,2.938]
[1642518007094,50.2795,136.21,136.08,6.0]
[1642518007295,41.76744899,136.2,136.1,35.14397422]
[1642518008519,52.78504899,136.2,136.1,46.16157422]
[1642518009326,11.0176,136.2,136.1,46.16157422]
[1642518009626,2.936,136.2,136.1,46.16157422]
[1642518010224,0.25,136.19,136.1,46.16157422]
[1642518010625,47.3415,136.21,136.11,0.25]
[1642518010823,47.3415,136.21,136.14,11.0144]
[1642518011023,23.4917,136.23,136.14,17.7854]
[1642518011221,47.7844,136.24,136.15,0.25]
[1642518011423,39.706,136.26,136.14,6.771]
[1642518011622,36.77,136.24,136.15,44.18718577]
[1642518011823,41.96243295,136.22,136.15,44.18718577]
[1642518012123,41.96243295,136.22,136.12,2.936]
[1642518012325,52.97793295,136.22,136.11,6.0]
[1642518012522,3.186,136.21,136.09,6.0]
[1642518012726,3.186,136.21,136.06,2.936]
[1642518012926,6.0,136.2,136.07,6.0]
[1642518013125,38.1502793,136.19,136.02,2.938]
[1642518013323,58.87863202,136.19,136.04,11.023]
[1642518013523,59.45822402,136.19,135.98,124.2884]
[1642518013826,24.80075272,136.18,135.98,50.4384]
[1642518014022,2.939,136.17,135.98,50.4384]
[1642518014224,41.80660846,136.16,135.98,47.4994]
[1642518014524,11.0262,136.12,135.98,58.5273]
[1642518014727,39.96,136.11,135.98,11.0279]
[1642518014923,39.96,136.11,135.97,2.939]
[1642518015125,41.74905272,136.11,135.94,2.94]
[1642518015324,26.36165272,136.1,135.94,2.94]
[1642518015525,11.028,136.08,135.94,11.0311]
[1642518015727,3.19,136.07,135.94,52.03656122]
[1642518015925,4.97905272,136.07,135.91,1.70588188]
[1642518016128,47.3631,136.06,135.9,2.94]
[1642518016325,47.3631,136.06,135.93,11.07590496]
[1642518016525,47.3631,136.06,135.94,6.0]
[1642518016725,0.25,136.05,135.95,2.941]
[1642518016925,46.92175093,136.05,135.96,45.88620279]
[1642518017726,47.18175093,136.05,135.96,45.88620279]
[1642518017927,0.26,136.05,135.97,11.0289]
[1642518018127,46.629,136.1,135.97,25.3329]
[1642518018732,39.71,136.11,135.98,1.95588188]
[1642518018929,36.77,136.13,136.01,11.021]
[1642518019130,53.29164043,136.17,136.01,11.021]
[1642518019131,53.29164043,136.17,136.02,6.0]
[1642518019327,53.29164043,136.17,136.02,10.89488188]
[1642518019729,47.0494,136.17,136.03,1.70588188]
[1642518019928,90.01338133,136.17,136.03,39.97041546]
[1642518020128,101.03348133,136.17,136.05,11.0196]
[1642518020333,2.938,136.16,136.03,38.26453358]
[1642518020531,6.0,136.15,136.03,38.26453358]
[1642518020729,51.50848856,136.14,136.02,2.939]
[1642518020933,53.29754128,136.14,135.93,2.939]
[1642518021229,11.0269,136.12,135.96,11.0295]
[1642518021628,46.17894734,136.11,135.97,51.64298144]
[1642518022031,44.38989462,136.11,135.97,51.64298144]
[1642518022231,44.13989462,136.11,135.98,3.19]
[1642518022631,41.19989462,136.11,135.99,6.0]
[1642518022831,41.19989462,136.11,136.0,36.36398989]
[1642518023035,2.94,136.1,136.0,36.36398989]
[1642518023331,45.27481945,136.08,136.0,47.39098989]
[1642518023533,2.94,136.11,136.0,47.39098989]
[1642518023733,2.94,136.11,136.01,0.25]
[1642518023930,49.066,136.12,136.01,0.25]
[1642518024131,49.066,136.12,136.01,9.189]
[1642518024535,2.939,136.13,136.04,11.0237]
[1642518024732,40.15048758,136.15,136.05,37.61194857]
[1642518024935,2.939,136.18,136.05,43.61194857]
[1642518025834,57.73504534,136.17,136.08,11.0196]
[1642518026038,2.938,136.16,136.05,43.36194857]
[1642518026335,0.25,136.15,136.05,43.36194857]
[1642518026537,2.939,136.14,136.05,6.0]
[1642518026735,0.25,136.13,136.05,6.0]
[1642518026937,2.939,136.12,136.02,6.0]
[1642518027339,0.25,136.11,136.02,6.0]
[1642518027536,53.36908231,136.11,136.03,34.77456683]
[1642518027943,127.21908231,136.11,136.04,6.0]
[1642518028137,127.21908231,136.11,135.99,2.939]
[1642518028338,2.939,136.1,135.98,2.939]
[1642518028539,42.34368231,136.11,135.99,17.027]
[1642518028737,42.09368231,136.11,136.0,3.19]
[1642518028937,0.25,136.1,136.0,8.94]
[1642518029140,42.09368231,136.11,136.01,39.39058304]
[1642518029339,42.09368231,136.11,136.01,39.64058304]
[1642518029539,42.09368231,136.11,136.01,39.39058304]
[1642518029740,42.35368231,136.11,136.01,39.39058304]
[1642518030139,11.0232,136.13,136.03,11.0221]
[1642518030340,27.2136,136.14,136.03,11.0221]
[1642518030540,0.25,136.13,136.03,11.0221]
[1642518030739,0.25,136.13,136.01,39.39058304]
[1642518030940,2.939,136.12,135.98,1.70588188]
[1642518031146,4.72805272,136.12,135.99,6.0]
[1642518031339,2.03905272,136.11,135.99,6.0]
[1642518031538,11.0273,136.08,135.99,17.0272]
[1642518031740,0.25,136.07,135.99,17.0272]
[1642518031940,43.83405897,136.07,136.0,48.88715105]
[1642518032942,43.83405897,136.07,136.02,11.025]
[1642518033144,0.25,136.07,136.02,11.025]
[1642518033342,0.25,136.09,136.02,11.025]
[1642518033546,2.94,136.1,136.02,11.025]
[1642518033774,4.14539393,136.14,136.03,2.939]
[1642518033944,4.14539393,136.14,136.06,11.0215]
[1642518034145,48.02764683,136.13,136.06,11.0215]
[1642518035044,59.05084683,136.13,136.04,11.023]
[1642518035646,0.25,136.12,136.04,11.023]
[1642518035845,0.25,136.12,136.03,2.939]
[1642518036144,53.14355858,136.1,136.03,2.939]
[1642518036348,2.939,136.09,136.03,2.939]
[1642518036545,0.25,136.09,136.03,2.939]
[1642518036747,2.939,136.1,136.03,49.90919415]
[1642518037048,2.939,136.15,136.03,46.97019415]
[1642518037247,87.8088,136.18,136.04,3.189]
[1642518037447,4.14539393,136.16,136.04,3.189]
[1642518037652,4.14539393,136.16,136.05,6.0]
[1642518037847,49.65560261,136.15,136.05,6.0]
[1642518038047,49.65560261,136.15,136.04,2.939]
[1642518038247,2.939,136.14,136.01,11.0254]
[1642518038447,4.72805272,136.14,136.02,6.0]
[1642518038646,2.03905272,136.13,135.97,2.939]
[1642518038853,47.50622599,136.11,136.0,39.08042411]
[1642518039047,2.939,136.1,136.0,39.08042411]
[1642518039251,0.25,136.1,136.01,2.939]
[1642518039450,0.25,136.1,136.0,39.08042411]
[1642518039654,77.04,136.1,136.0,39.08042411]
[1642518040055,77.04,136.1,135.97,2.939]
[1642518040252,77.04,136.1,135.99,11.0278]
[1642518040253,88.0663,136.1,135.99,11.0278]
[1642518040452,88.0663,136.1,135.97,2.939]
[1642518040653,114.23825272,136.1,135.98,6.0]
[1642518040851,114.23825272,136.1,135.96,8.94]
[1642518040852,112.4492,136.1,135.96,8.94]
[1642518041052,112.4492,136.1,135.96,2.94]
[1642518041279,1.78905272,136.09,135.96,2.94]
[1642518041489,11.0338,136.06,135.96,2.94]
[1642518041680,3.19,136.05,135.96,2.94]
[1642518041879,77.04,136.05,135.96,2.94]
[1642518042283,37.73528177,136.04,135.96,2.94]
[1642518042483,2.941,136.03,135.96,2.94]
[1642518042680,3.191,136.03,135.96,2.94]
[1642518042882,14.2245,136.03,135.96,2.94]
[1642518043087,14.2245,136.03,135.88,3.66999267]
[1642518043088,16.01355272,136.03,135.88,3.66999267]
[1642518043282,60.8182,136.03,135.89,6.0]
[1642518043482,60.8182,136.03,135.9,2.942]
[1642518043685,57.8772,136.03,135.91,41.05756936]
[1642518043887,57.8772,136.03,135.92,2.941]
[1642518044090,0.26,136.03,135.93,11.0321]
[1642518044285,2.941,136.08,135.94,64.941]
[1642518044489,2.941,136.08,135.95,6.0]
[1642518044685,2.941,136.08,135.96,2.94]
[1642518044885,2.941,136.08,135.95,6.0]
[1642518045085,53.38867789,136.07,135.96,42.18886063]
[1642518045291,53.38867789,136.07,135.9,2.94]
[1642518045489,52.1297,136.06,135.9,2.94]
[1642518045686,53.91875272,136.06,135.91,6.0]